bitfinex/quotes_ETHUSD_20220101
["timestamp","ask_amount","ask_price","bid_price","bid_amount"]
[1641015711109,1.2245281,3748.3,3747.9,0.06591743]
[1641015711410,1.2245281,3748.3,3747.3,1.18523783]
[1641015711411,1.3858343,3747.7,3747.3,1.18523783]
[1641015711708,0.00341054,3748.2,3747.4,0.00113685]
[1641015711954,0.00341054,3748.2,3747.4,0.06705428]
[1641015712155,5.35891528,3748.7,3747.5,1.39983743]
[1641015712156,0.00284211,3748.1,3747.5,1.39983743]
[1641015712353,0.92246275,3748.1,3747.5,1.39983743]
[1641015712553,0.00227369,3748.0,3747.6,0.06591743]
[1641015712759,1.00349529,3747.9,3747.6,0.06591743]
[1641015712956,1.00520056,3747.9,3747.8,0.66699]
[1641015713155,1.00349529,3747.9,3747.8,0.66699]
[1641015713359,1.00349529,3747.9,3747.8,0.06591743]
[1641015713761,1.00349529,3747.9,3747.4,0.00113685]
[1641015713960,1.00349529,3747.9,3747.3,2.33586404]
[1641015714159,1.00633741,3747.9,3747.2,1.33405]
[1641015714360,1.92595805,3747.9,3747.2,1.33405]
[1641015714760,1.92595805,3747.9,3747.4,0.66706]
[1641015714961,1.00633741,3747.9,3747.4,0.66706]
[1641015716008,1.00633741,3747.9,3747.2,1.33405]
[1641015717507,1.00633741,3747.9,3746.8,1.33419]
[1641015717914,1.00633741,3747.9,3746.9,0.00284212]
[1641015719314,1.16134424,3747.2,3746.9,0.00284212]
[1641015719760,0.00284212,3747.9,3747.0,0.66713]
[1641015720158,0.00284212,3747.9,3747.1,0.00170527]
[1641015722161,1.35487256,3747.3,3747.1,0.00170527]
[1641015724616,4.95,3747.2,3747.1,0.00170527]
[1641015724817,1.35487256,3747.3,3747.1,5.27e-06]
[1641015725017,1.35487256,3747.3,3746.5,1.33445]
[1641015725018,1.35487256,3747.3,3746.9,0.00114212]
[1641015726618,1.35487256,3747.3,3746.9,0.66835212]
[1641015732223,2.5174779,3747.2,3746.9,0.00114212]
[1641015734659,0.8860041,3747.1,3746.9,0.00114212]
[1641015734859,7.53586185,3747.0,3746.9,0.00114212]
[1641015735462,7.94791262,3747.0,3746.9,4.212e-05]
[1641015735858,7.94791262,3747.0,3746.6,0.00174739]
[1641015736459,0.3,3746.9,3746.6,0.00174739]
[1641015736661,2.99791262,3746.8,3746.6,0.00174739]
[1641015736859,2.99791262,3746.8,3746.5,0.00231581]
[1641015736860,1.165991,3746.7,3746.5,0.00231581]
[1641015737860,1.165991,3746.7,3746.2,0.00402108]
[1641015738719,0.88614044,3746.6,3746.2,0.00402108]
[1641015739118,0.88614044,3746.5,3746.2,0.00402108]
[1641015739522,2.60680899,3746.4,3746.2,0.00402108]
[1641015739923,2.60680899,3746.4,3745.5,1.33479]
[1641015739924,3.49294943,3746.4,3746.0,0.00515793]
[1641015740124,3.49294943,3746.4,3745.8,1.19773051]
[1641015740125,4.8,3746.3,3745.8,1.15288844]
[1641015740323,2.60776856,3746.2,3745.8,1.15288844]
[1641015740525,2.60776856,3746.2,3745.5,1.33479]
[1641015740526,2.60890541,3746.2,3745.5,1.33479]
[1641015740725,0.00170527,3746.3,3745.5,1.33479]
[1641015741025,2.87888688,3746.6,3745.6,0.00227369]
[1641015741026,1.41214633,3746.0,3745.6,0.00227369]
[1641015741822,1.41214633,3746.0,3745.7,0.66744]
[1641015742260,1.41214633,3746.0,3745.8,0.00113685]
[1641015742863,4.95,3745.9,3745.8,0.00113685]
[1641015743077,7.94791262,3745.9,3745.8,0.00113685]
[1641015743466,4.95,3745.9,3745.8,0.00113685]
[1641015743668,4.95,3745.9,3745.5,0.00284212]
[1641015743871,7.94791262,3745.9,3745.3,0.00397896]
[1641015744867,6.3565017,3745.4,3745.3,0.00397896]
[1641015745468,8.91920497,3745.4,3745.3,0.00397896]
[1641015745707,6.3565017,3745.4,3745.3,0.00397896]
[1641015745909,4.5565017,3745.4,3745.1,0.00511581]
[1641015746110,4.5565017,3745.4,3744.9,0.00625266]
[1641015746310,2.52859992,3745.3,3744.9,0.00625266]
[1641015746510,1.4065017,3745.4,3744.9,0.00625266]
[1641015746713,2.99791262,3745.3,3744.9,0.00625266]
[1641015747210,1.4065017,3745.4,3744.6,0.00795793]
[1641015747412,1.4065017,3745.4,3744.7,0.66761]
[1641015747914,1.19831167,3745.0,3744.8,0.00682108]
[1641015748314,1.19831167,3745.0,3744.6,0.00795793]
[1641015748515,1.19831167,3745.0,3744.5,1.29312793]
[1641015748815,0.00170527,3744.9,3744.5,1.29312793]
[1641015749223,0.00113685,3744.8,3744.5,1.29312793]
[1641015749656,0.00170527,3744.9,3744.5,1.29312793]
[1641015750053,0.00113685,3744.8,3744.5,1.29312793]
[1641015750453,2.485035,3744.9,3744.5,1.29312793]
[1641015750656,2.48893023,3744.9,3744.5,1.29312793]
[1641015750854,1.19831167,3745.0,3744.5,1.29312793]
[1641015750855,0.00113685,3744.8,3744.5,1.29312793]
[1641015751053,0.00113685,3744.8,3744.5,1.19312793]
[1641015751256,1.19831167,3745.0,3744.5,1.19312793]
[1641015751257,0.00170527,3744.9,3744.5,1.19312793]
[1641015751456,2.48957837,3744.9,3744.5,1.19312793]
[1641015751655,0.00113685,3744.8,3744.5,1.19312793]
[1641015752054,0.00170527,3744.9,3744.5,1.19312793]
[1641015752454,0.00113685,3744.8,3744.5,1.19312793]
[1641015752956,0.00170527,3744.9,3744.5,1.19312793]
[1641015753206,2.53443071,3744.9,3744.5,1.19312793]
[1641015753414,0.00113685,3744.8,3744.5,1.19312793]
[1641015753818,0.00170527,3744.9,3744.5,1.19312793]
[1641015754214,0.00113685,3744.8,3744.5,1.19312793]
[1641015754613,0.00170527,3744.9,3744.5,1.19312793]
[1641015754814,2.48248824,3744.9,3744.5,1.19312793]
[1641015755014,2.47611383,3744.8,3744.4,0.66767]
[1641015755416,2.47497698,3744.8,3743.7,6.707]
[1641015755618,2.47497698,3744.8,3743.6,3.8188]
[1641015755619,2.47497698,3744.8,3743.6,3.6188]
[1641015755816,2.47497698,3744.8,3743.8,0.00454738]
[1641015756216,2.47497698,3744.8,3743.4,0.00682108]
[1641015756415,2.47497698,3744.8,3743.2,0.39432462]
[1641015756416,2.47497698,3744.8,3743.3,0.0073895]
[1641015756618,0.06440527,3744.9,3743.3,0.0073895]
[1641015757067,0.00113685,3744.8,3743.3,2.6780395]
[1641015757265,0.00113685,3744.8,3743.4,1.0]
[1641015757467,1.3930845,3744.6,3744.0,0.66775]
[1641015757867,1.3930845,3744.6,3744.1,0.00284211]
[1641015758668,1.3930845,3744.6,3744.3,0.66761]
[1641015759173,1.3930845,3744.6,3744.4,0.00113684]
[1641015759771,0.00113685,3744.8,3744.4,0.00113684]
[1641015759970,0.00113685,3744.8,3744.6,0.66763]
[1641015760473,0.00113685,3744.8,3744.4,0.00113684]
[1641015760911,1.08649647,3744.5,3744.3,1.33523]
[1641015761110,1.08649647,3744.5,3744.4,0.00113684]
[1641015761710,4.28649647,3744.5,3744.4,0.00113684]
[1641015764117,0.00113685,3744.8,3744.5,0.74800662]
[1641015764319,0.00113685,3744.8,3744.6,0.66757]
[1641015764572,0.00113685,3744.8,3744.6,0.73348743]
[1641015764970,0.00113685,3744.8,3744.7,0.06591743]
[1641015766377,1.31185797,3745.6,3744.7,0.06591743]
[1641015766576,0.061,3746.1,3745.1,0.66746]
[1641015766882,0.00397896,3745.5,3745.1,0.66746]
[1641015767379,0.00341054,3745.4,3745.1,0.66746]
[1641015767880,0.061,3746.1,3745.1,0.66746]
[1641015767881,0.00284212,3745.3,3745.1,0.66746]
[1641015768334,0.00227369,3745.2,3745.1,0.66746]
[1641015770936,0.00227369,3745.2,3744.5,0.48631755]
[1641015771336,0.00170527,3745.1,3744.6,0.00113684]
[1641015771535,0.00170527,3745.1,3744.9,1.33497]
[1641015771737,0.00113685,3745.0,3744.9,1.33497]
[1641015773569,0.00113685,3745.0,3744.6,0.00113684]
[1641015774372,1.31232704,3744.9,3744.6,0.00113684]
[1641015774571,1.31232704,3744.9,3744.3,0.00284212]
[1641015774773,1.31232704,3744.9,3744.1,0.67158896]
[1641015774973,1.31232704,3744.9,3744.2,0.00341054]
[1641015775177,0.00113685,3745.0,3744.2,0.01582636]
[1641015775572,0.00113685,3745.0,3744.3,0.00284212]
[1641015776415,0.00113685,3745.0,3744.5,0.66754]
[1641015776610,0.00113685,3745.0,3743.9,1.0]
[1641015776810,0.00341054,3744.9,3743.9,1.0]
[1641015777010,0.00341054,3744.9,3744.0,0.00170527]
[1641015777210,0.00284212,3744.8,3744.0,0.00170527]
[1641015777410,0.00284212,3744.8,3743.7,4.44232448]
[1641015777610,0.0022737,3744.7,3743.7,4.47834524]
[1641015777816,0.0022737,3744.7,3743.8,0.00284211]
[1641015778012,0.00170527,3744.6,3743.8,0.00284211]
[1641015778214,0.00170527,3744.6,3744.4,1.33501]
[1641015778419,0.00113685,3744.5,3744.4,1.33501]
[1641015781774,0.062,3746.0,3744.4,1.33501]
[1641015781973,4.95,3745.9,3744.0,1.2542]
[1641015782171,0.00397896,3745.2,3744.0,0.78454274]
[1641015782472,0.00341054,3745.1,3744.1,0.00227369]
[1641015782873,0.00284212,3745.0,3744.1,0.00227369]
[1641015783322,0.00227369,3744.9,3744.4,1.33501]
[1641015783723,0.00170527,3744.8,3744.4,1.33501]
[1641015784032,0.00113685,3744.7,3744.4,1.33501]
[1641015786429,0.00113685,3744.7,3744.0,1.07129805]
[1641015786629,0.00284211,3744.6,3744.0,1.10230023]
[1641015786831,0.00284211,3744.6,3744.4,1.22309149]
[1641015787063,0.00227369,3744.5,3744.4,1.22309149]
[1641015787864,0.00227369,3744.5,3744.4,2.55810149]
[1641015790721,0.00227369,3744.5,3744.4,1.33501]
[1641015791327,0.00227369,3744.5,3744.1,1.3639785]
[1641015791723,0.00170527,3744.4,3744.1,1.3639785]
[1641015791925,0.00170527,3744.4,3744.1,1.0]
[1641015792122,0.00113684,3744.3,3744.1,1.0]
[1641015792522,0.88523159,3745.6,3744.2,1.9]
[1641015792723,0.062,3746.0,3744.2,1.9]
[1641015792924,0.00682108,3745.5,3744.2,1.9]
[1641015793123,0.00682108,3745.5,3744.2,2.9]
[1641015793327,0.00625266,3745.4,3744.2,1.9]
[1641015793537,0.00625266,3745.4,3744.1,1.0]
[1641015793729,0.00568424,3745.3,3744.7,0.66746]
[1641015794128,0.00511581,3745.2,3744.7,0.66746]
[1641015794573,0.00454739,3745.1,3744.7,0.66746]
[1641015794974,0.00397897,3745.0,3744.7,0.66746]
[1641015795274,0.00341054,3744.9,3744.7,0.66746]
[1641015795673,0.00284212,3744.8,3744.7,0.66746]
[1641015799227,0.062,3746.0,3744.7,0.66746]
[1641015799622,0.00625266,3745.9,3744.7,0.66746]
[1641015799923,0.00568423,3745.8,3744.7,0.66746]
[1641015800325,1.26130865,3745.6,3744.7,0.66746]
[1641015800525,3.2,3745.5,3744.3,0.6001536]
[1641015800724,3.20397896,3745.5,3744.3,0.99757409]
[1641015800925,0.00341054,3745.4,3744.4,0.00227369]
[1641015801329,0.00284212,3745.3,3744.4,0.00227369]
[1641015801727,0.00227369,3745.2,3744.9,0.66745]
[1641015802163,0.00170527,3745.1,3744.9,0.66745]
[1641015802566,0.00113685,3745.0,3744.9,0.66745]
[1641015803165,1.2635699,3745.0,3744.9,0.66745]
[1641015803370,1.2635699,3745.0,3744.7,0.66757]
[1641015803969,1.2635699,3745.0,3744.4,0.00227369]
[1641015804670,1.2635699,3745.0,3744.6,0.66757]
[1641015805270,1.2635699,3745.0,3743.6,1.72247848]
[1641015805473,0.00284211,3744.9,3743.7,0.03094895]
[1641015805709,0.00284211,3744.9,3743.7,0.03492792]
[1641015805914,0.00227369,3744.8,3744.3,0.66757]
[1641015806212,0.00170527,3744.7,3744.3,0.96757]
[1641015806415,0.00170527,3744.7,3744.4,16.48576743]
[1641015806611,0.06281937,3745.4,3744.9,16.31958089]
[1641015806811,3.71438012,3746.9,3745.0,2.95]
[1641015807014,2.26557976,3747.2,3745.9,0.66728]
[1641015807218,1.40861315,3746.6,3745.9,1.44588]
[1641015807512,1.40861315,3746.6,3746.0,0.06591743]
[1641015807911,0.01364216,3747.1,3746.0,0.06591743]
[1641015808112,0.01364216,3747.1,3746.5,0.66727]
[1641015808315,0.01307374,3747.0,3746.5,0.66727]
[1641015808718,0.01250531,3746.9,3746.5,0.66727]
[1641015808924,1.35103206,3746.7,3746.5,0.66727]
[1641015809471,0.01080004,3746.6,3746.5,0.66727]
[1641015810070,0.01080004,3746.6,3746.3,0.66731]
[1641015810473,0.01023162,3746.5,3745.3,2.26144484]
[1641015810773,0.0096632,3746.4,3745.2,2.26144484]
[1641015810976,4.15,3746.3,3745.0,2.63587475]
[1641015811171,4.21959477,3746.3,3745.0,1.62572991]
[1641015811372,1.29533125,3745.7,3744.7,6.69207832]
[1641015811573,1.29533125,3745.7,3744.7,3.62765991]
[1641015811770,1.29533125,3745.7,3745.2,0.66744]
[1641015811771,0.00511581,3745.6,3745.2,0.66744]
[1641015812171,0.00454738,3745.5,3745.2,0.66744]
[1641015812569,0.00397896,3745.4,3745.2,0.66744]
[1641015812970,0.00341054,3745.3,3745.2,0.66744]
[1641015814325,0.00341054,3745.3,3744.5,0.00113685]
[1641015814722,0.00284211,3745.2,3744.5,0.00113685]
[1641015815025,0.00227369,3745.1,3744.5,0.00113685]
[1641015815429,1.39562783,3744.9,3744.5,0.00113685]
[1641015815724,1.39562783,3744.9,3743.7,12.18184926]
[1641015815923,2.43160021,3744.8,3744.1,0.00227369]
[1641015816122,2.39482172,3744.8,3744.1,0.00227369]
[1641015816323,0.00113685,3744.7,3744.2,1.22482521]
[1641015816531,0.00113685,3744.7,3744.3,0.66766]
[1641015816726,0.00113685,3744.7,3744.3,0.66879685]
[1641015819887,1.85,3744.6,3743.8,5.15892206]
[1641015820286,0.00113685,3744.5,3743.9,0.00227369]
[1641015820712,0.00113685,3744.5,3744.3,0.66766]
[1641015825064,0.00113685,3744.5,3743.5,1.20629016]
[1641015825269,0.00284212,3744.4,3743.5,16.85629016]
[1641015825469,0.00284212,3744.4,3743.6,0.0676227]
[1641015825669,0.00227369,3744.3,3743.6,0.0676227]
[1641015825871,0.00227369,3744.3,3743.7,0.06705428]
[1641015826069,0.00170527,3744.2,3743.7,0.06705428]
[1641015826270,0.00170527,3744.2,3743.8,0.06591743]
[1641015826470,0.00113685,3744.1,3743.8,0.06591743]
[1641015826671,0.00113685,3744.1,3744.0,1.3353]
[1641015826872,1.36007263,3744.3,3744.0,1.3353]
[1641015827072,0.00113685,3744.1,3744.0,1.40121743]
[1641015827275,0.00170527,3744.2,3744.0,1.40121743]
[1641015827474,1.36007263,3744.3,3744.0,1.40121743]
[1641015827475,0.00113685,3744.1,3744.0,1.40121743]
[1641015828530,0.00113685,3744.1,3744.0,2.00121743]
[1641015828731,0.06272207,3745.5,3744.8,0.66741]
[1641015828935,1.1679205,3745.3,3744.8,1.31191]
[1641015829233,1.1679205,3745.3,3744.9,0.06591743]
[1641015829630,1.1679205,3745.3,3744.4,0.1056]
[1641015829839,1.1679205,3745.3,3744.7,0.66759]
[1641015830029,1.1679205,3745.3,3744.4,1.33514]
[1641015830730,1.03266618,3744.6,3744.4,1.33514]
[1641015831129,0.00227369,3744.5,3744.4,1.33514]
[1641015831973,0.00227369,3744.5,3743.7,13.32148685]
[1641015832175,0.00341054,3744.5,3743.7,13.32148685]
[1641015832376,1.04705047,3744.8,3743.7,13.32148685]
[1641015832377,0.00284212,3744.4,3743.7,13.32148685]
[1641015832774,0.00227369,3744.3,3743.7,13.32148685]
[1641015833072,0.00170527,3744.2,3743.7,13.32148685]
[1641015833576,0.00113685,3744.1,3743.7,13.32148685]
[1641015833776,0.00113685,3744.1,3743.8,0.66761]
[1641015833976,0.00454739,3744.7,3743.8,0.66761]
[1641015834177,0.00454739,3744.7,3743.7,13.32148685]
[1641015834379,0.00397896,3744.6,3743.7,13.32148685]
[1641015834780,0.00341054,3744.5,3744.1,1.33519]
[1641015835178,0.00284212,3744.4,3744.1,1.33519]
[1641015835579,0.00227369,3744.3,3744.1,1.33519]
[1641015836023,0.00170527,3744.2,3744.1,1.33519]
[1641015836424,0.00625266,3744.2,3744.1,1.33519]
[1641015837830,0.00625266,3744.2,3743.7,14.98485488]
[1641015838028,0.00625266,3744.2,3743.7,0.44696]
[1641015838227,0.00113685,3744.1,3743.8,0.104]
[1641015838429,0.00113685,3744.1,3743.7,0.44696]
[1641015838430,0.00113685,3744.1,3743.7,1.11454]
[1641015838629,0.00568423,3744.9,3743.7,1.11454]
[1641015838830,0.00568423,3744.9,3744.3,0.66759]
[1641015839131,0.00511581,3744.8,3744.3,0.66759]
[1641015839569,0.00454739,3744.7,3744.3,0.66759]
[1641015839972,0.00397896,3744.6,3744.4,15.65]
[1641015840178,2.82284334,3745.6,3744.5,1.96737]
[1641015840378,2.82284334,3745.6,3744.9,1.33472]
[1641015840379,0.00909477,3745.5,3744.9,1.33472]
[1641015840772,0.00454739,3745.4,3744.9,1.33472]
[1641015840982,0.00454739,3745.4,3745.0,0.06591743]
[1641015841173,0.00397897,3745.3,3745.0,0.06591743]
[1641015841670,1.36003615,3745.5,3745.0,0.06591743]
[1641015841671,0.00341054,3745.2,3745.0,0.06591743]
[1641015842076,0.00284212,3745.1,3745.0,0.06591743]
[1641015842472,0.00284212,3745.1,3744.5,17.82300743]
[1641015842675,0.00284212,3745.1,3744.6,0.1104]
[1641015842873,0.06272066,3746.0,3744.6,0.1104]
[1641015842874,1.22986382,3745.6,3745.0,0.06591743]
[1641015843074,1.22986382,3745.6,3745.5,0.66741]
[1641015843330,1.15385368,3745.9,3745.5,0.66741]
[1641015843728,0.01245224,3746.1,3745.5,0.66741]
[1641015843729,1.15328525,3745.8,3745.5,0.66741]
[1641015844233,0.00625266,3745.7,3745.5,0.66741]
[1641015844627,1.14646417,3745.8,3745.5,0.66741]
[1641015844628,0.00568424,3745.6,3745.5,0.66741]
[1641015846729,0.00568424,3745.6,3745.4,1.33482]
[1641015846968,0.00568424,3745.6,3744.8,0.51547263]
[1641015847171,0.00511581,3745.5,3744.8,0.51547263]
[1641015847371,0.00511581,3745.5,3744.9,0.66736]
[1641015847571,0.00454739,3745.4,3744.9,0.66736]
[1641015847976,0.00397897,3745.3,3745.0,0.66734]
[1641015848172,0.00397897,3745.3,3745.2,0.66737]
[1641015848377,1.00836521,3746.0,3745.2,0.66737]
[1641015848776,0.00738951,3745.9,3745.2,1.33469]
[1641015848976,0.00738951,3745.9,3745.3,0.66731]
[1641015849178,0.00682108,3745.8,3745.3,0.66731]
[1641015849576,0.00625266,3745.7,3745.3,0.66731]
[1641015849777,0.00625266,3745.7,3745.5,0.66732]
[1641015849979,0.00568424,3745.6,3745.5,0.66732]
[1641015850719,0.00568424,3745.6,3745.1,1.3386069]
[1641015850921,0.00568424,3745.6,3745.1,1.6347]
[1641015851123,0.00511581,3745.5,3745.4,1.33464]
[1641015851522,0.01136847,3745.5,3745.4,1.33464]
[1641015852928,0.01136847,3745.5,3745.4,16.98464]
[1641015853530,0.01136847,3745.5,3745.4,1.33464]
[1641015856873,1.0863088,3746.6,3745.5,1.95]
[1641015857070,1.0863088,3746.6,3745.5,1.33454]
[1641015857470,1.0863088,3746.6,3746.0,0.66728]
[1641015857869,1.0863088,3746.6,3746.1,0.00284212]
[1641015858321,1.0863088,3746.6,3746.0,0.00341054]
[1641015859319,1.0863088,3746.6,3746.3,0.66729]
[1641015859520,2.9,3746.5,3745.4,0.53845999]
[1641015859920,2.90284212,3746.5,3745.5,0.67010212]
[1641015860420,0.00284212,3746.5,3745.9,1.3345]
[1641015863088,0.00284212,3746.5,3745.6,0.66725]
[1641015863293,0.00454739,3746.4,3745.6,16.3172089]
[1641015863492,0.00454739,3746.4,3746.0,1.33449]
[1641015863696,0.00397896,3746.3,3746.0,1.33449]
[1641015864098,0.00341054,3746.2,3746.0,1.33449]
[1641015864494,0.00284211,3746.1,3746.0,1.33449]
[1641015867724,0.00284211,3746.1,3745.6,17.3860496]
[1641015868126,0.00227369,3746.0,3745.6,17.6860496]
[1641015868328,0.00227369,3746.0,3745.9,0.66719]
[1641015868530,0.0638223,3746.6,3745.9,0.66719]
[1641015868732,0.0638223,3746.6,3745.9,16.31719]
[1641015869033,0.00511581,3746.5,3745.9,0.66719]
[1641015869467,0.00454739,3746.4,3745.9,0.66719]
[1641015869667,0.00454739,3746.4,3745.9,0.61719]
[1641015869866,0.00397896,3746.3,3745.9,0.61719]
[1641015870067,0.00397896,3746.3,3745.9,2.76961881]
[1641015870270,0.00341054,3746.2,3745.9,2.76961881]
[1641015870667,1.13072219,3746.1,3745.9,2.76961881]
[1641015871067,0.00227369,3746.0,3745.9,2.76961881]
[1641015871468,0.00227369,3746.0,3745.9,0.61719]
[1641015871872,0.00227369,3746.0,3745.7,0.33328119]
[1641015872274,0.00170527,3745.9,3745.7,0.33328119]
[1641015872674,0.00113684,3745.8,3745.7,0.33328119]
[1641015872873,0.00113684,3745.8,3745.7,2.33501119]
[1641015873321,0.00113684,3745.8,3745.7,2.00173]
[1641015875923,0.00113684,3745.8,3745.6,15.6584273]
[1641015876624,0.00113684,3745.8,3745.7,2.00173]
[1641015881724,0.00113684,3745.8,3745.6,0.66733]
[1641015885068,0.00113684,3745.8,3745.4,0.40148683]
[1641015886768,0.00113684,3745.8,3744.3,0.39078372]
[1641015886769,4.95,3745.7,3744.3,0.39078372]
[1641015886969,4.95,3745.7,3744.6,36.0]
[1641015887274,4.95,3745.7,3744.4,0.00682108]
[1641015887470,0.062,3745.6,3744.4,0.00682108]
[1641015887771,0.062,3745.6,3744.7,0.66761]
[1641015888218,0.062,3745.6,3744.8,0.00454739]
[1641015888422,1.23674678,3744.9,3744.8,0.00454739]
[1641015890222,2.74934032,3744.9,3744.8,0.00454739]
[1641015892170,2.45,3744.8,3744.1,0.70761646]
[1641015892566,2.45,3744.8,3744.2,0.00341054]
[1641015893574,0.01203376,3744.4,3744.2,0.00341054]
[1641015893972,2.45,3744.8,3744.2,0.00341054]
[1641015893973,4.01259354,3744.3,3744.2,0.00341054]
[1641015894772,5.1463488,3744.3,3744.2,0.00341054]
[1641015894976,2.6463488,3744.3,3744.2,0.00341054]
[1641015895371,2.6463488,3744.3,3743.6,3.0]
[1641015895372,2.6463488,3744.3,3743.6,0.00682108]
[1641015895571,2.6463488,3744.3,3743.7,0.00625266]
[1641015895822,2.6463488,3744.3,3743.6,0.00682108]
[1641015896022,2.6463488,3744.3,3743.5,0.00738951]
[1641015896624,1.51259354,3744.2,3743.5,0.00738951]
[1641015896824,1.51259354,3744.2,3743.9,0.66772]
[1641015897024,1.13375526,3744.3,3743.9,0.66772]
[1641015897225,1.13375526,3744.3,3744.0,0.00454739]
[1641015897628,1.13375526,3744.3,3743.2,1.0]
[1641015897629,1.13375526,3744.3,3743.1,3.83920697]
[1641015897824,0.00284212,3744.2,3743.1,3.83920697]
[1641015898028,0.00284212,3744.2,3743.2,0.00284212]
[1641015898224,0.0022737,3744.1,3743.7,1.33541]
[1641015898628,0.00170527,3744.0,3743.7,1.33541]
[1641015899031,0.00113685,3743.9,3743.7,1.33541]
[1641015899489,0.00284212,3744.2,3743.7,1.33541]
[1641015899889,0.0022737,3744.1,3743.7,1.33541]
[1641015900292,0.00170527,3744.0,3743.7,1.33541]
[1641015900691,1.13375526,3744.3,3743.7,1.33541]
[1641015900692,0.00113685,3743.9,3743.7,1.33541]
[1641015901091,1.13375526,3744.3,3743.7,1.33541]
[1641015901092,0.00284212,3744.2,3743.7,1.33541]
[1641015901498,1.13375526,3744.3,3743.2,0.00284212]
[1641015901499,4.9522737,3744.1,3743.2,0.00284212]
[1641015901894,0.00170527,3744.0,3742.8,0.00511581]
[1641015902192,0.00170527,3744.0,3742.3,15.71591743]
[1641015902193,0.00113685,3743.9,3742.7,0.00568423]
[1641015902594,0.00113685,3743.9,3742.4,0.0073895]
[1641015903229,0.50113685,3743.9,3742.4,1.3432195]
[1641015903431,1.145624,3742.5,3742.4,1.3432195]
[1641015903635,1.145624,3742.5,3742.4,1.33583]
[1641015904836,0.00113685,3743.9,3742.4,1.33583]
[1641015904837,0.50113685,3743.9,3742.4,1.33583]
[1641015905036,2.90489469,3743.8,3742.4,1.33583]
[1641015905343,0.00113685,3743.9,3742.5,0.00682108]
[1641015905344,0.01294502,3743.5,3742.5,0.00682108]
[1641015905736,0.01294502,3743.5,3742.3,0.00795793]
[1641015905937,0.01294502,3743.5,3741.6,0.01193689]
[1641015906336,0.0611,3743.4,3741.6,0.01193689]
[1641015906738,0.0611,3743.4,3742.1,1.33592]
[1641015906978,1.11313648,3742.6,3742.1,1.33592]
[1641015907178,1.11313648,3742.6,3742.2,0.00852635]
[1641015907987,1.11313648,3742.6,3742.3,0.66798]
[1641015908384,1.11313648,3742.6,3742.4,0.0073895]
[1641015909386,1.11313648,3742.6,3742.5,0.11576542]
[1641015909587,3.39939972,3742.6,3742.5,0.11576542]
[1641015909785,3.39970324,3742.6,3742.5,0.11576542]
[1641015909987,1.11313648,3742.6,3742.5,0.11576542]
[1641015911427,1.11313648,3742.6,3741.4,13.1831471]
[1641015911627,0.00113685,3742.6,3741.5,1.0]
[1641015911830,0.00113685,3742.6,3742.1,2.00345]
[1641015912029,0.00113685,3742.6,3742.1,3.00345]
[1641015912228,0.00113685,3742.6,3742.2,0.00113685]
[1641015912630,1.30598579,3742.5,3742.2,0.00113685]
[1641015912829,1.30598579,3742.5,3742.4,0.66779]
[1641015916168,1.30598579,3742.5,3742.2,0.00113685]
[1641015916371,1.30598579,3742.5,3742.2,0.66914685]
[1641015917570,1.30598579,3742.5,3741.1,0.08321906]
[1641015917772,0.00113685,3742.4,3741.1,0.08321906]
[1641015917972,0.00113685,3742.4,3741.2,0.00568423]
[1641015918451,0.00113685,3742.4,3741.2,0.11608423]
[1641015918637,1.24914532,3741.9,3741.8,0.66799]
[1641015919038,1.24914532,3741.9,3741.8,0.67026369]
[1641015920239,1.24914532,3741.9,3741.8,0.00227369]
[1641015920840,1.24914532,3741.9,3741.7,0.00284212]
[1641015922479,5.08312684,3741.8,3741.7,0.00284212]
[1641015922677,1.24914532,3741.9,3740.9,3.85533212]
[1641015922879,2.28025629,3741.8,3741.4,0.00170527]
[1641015923079,1.24914532,3741.9,3741.4,0.00170527]
[1641015923282,1.24914532,3741.9,3741.3,1.33619]
[1641015924984,2.26275937,3741.8,3741.3,1.33619]
[1641015925822,2.26275937,3741.8,3741.1,0.00341054]
[1641015926422,2.26275937,3741.8,3741.2,0.6682]
[1641015926624,2.26275937,3741.8,3741.0,3.18791054]
[1641015926625,3.15,3741.7,3741.0,3.18791054]
[1641015926823,2.38457268,3741.6,3741.0,3.18791054]
[1641015927025,0.00284212,3741.6,3741.0,3.18791054]
[1641015927226,0.0022737,3741.5,3741.0,3.18791054]
[1641015927625,0.00170527,3741.4,3741.0,3.18791054]
[1641015927825,0.00170527,3741.4,3741.2,0.6682]
[1641015928025,1.09913059,3741.3,3741.2,0.6682]
[1641015928429,1.09913059,3741.3,3741.0,3.18791054]
[1641015928430,3.44033846,3741.3,3741.0,1.85161054]
[1641015930072,3.44033846,3741.3,3741.1,0.00081287]
[1641015930270,7.50948741,3741.2,3741.1,0.00081287]
[1641015930469,7.50948741,3741.2,3739.0,5.46309201]
[1641015930470,0.0008,3741.0,3739.6,1.29922663]
[1641015930674,2.67572844,3741.0,3739.7,1.23528978]
[1641015930870,2.67572844,3741.0,3739.7,1.24324771]
[1641015931270,2.73612844,3741.0,3739.8,0.0073895]
[1641015931474,2.73612844,3741.0,3738.7,16.8288]
[1641015931475,4.95,3740.8,3738.9,12.16522053]
[1641015931670,0.01232161,3740.3,3738.9,12.16522053]
[1641015931874,0.01232161,3740.3,3739.1,0.66852]
[1641015932081,0.00227369,3740.2,3739.5,6.93]
[1641015932470,0.00170527,3740.1,3739.6,0.00113685]
[1641015932672,1.24272543,3740.1,3739.6,0.00113685]
[1641015932971,1.24272543,3740.1,3739.6,3.685e-05]
[1641015932972,2.67606528,3740.0,3739.6,3.685e-05]
[1641015933223,2.67716528,3740.0,3739.6,3.685e-05]
[1641015933427,0.00166842,3739.9,3739.6,3.685e-05]
[1641015933829,2.67492844,3740.0,3739.4,5.59161883]
[1641015933830,4.95,3739.7,3739.4,5.59161883]
[1641015934033,2.67492844,3739.6,3739.4,4.89161883]
[1641015934230,2.67492844,3739.6,3738.1,1.33725]
[1641015934231,5.42921395,3739.4,3737.8,3.8333]
[1641015934428,2.67492844,3739.3,3737.6,26.71610065]
[1641015934627,2.67492844,3739.3,3737.9,0.0096632]
[1641015934828,2.67492844,3739.3,3738.4,6.93]
[1641015935028,4.42921395,3739.4,3738.4,6.78]
[1641015935029,7.10414239,3739.4,3738.4,6.78]
[1641015935229,4.42921395,3739.4,3738.5,0.00625266]
[1641015935427,2.67492844,3739.3,3738.5,0.00625266]
[1641015935626,2.67492844,3739.3,3738.4,1.78625266]
[1641015935828,0.00397897,3739.2,3738.4,1.78625266]
[1641015936128,2.67492844,3739.3,3738.3,1.33716]
[1641015936129,0.00341054,3739.1,3738.3,1.33716]
[1641015936531,2.67492844,3739.3,3738.3,1.33716]
[1641015936532,0.00284212,3739.0,3738.3,1.33716]